bitfinex/quotes_SOLUSD_20241125
["timestamp","ask_amount","ask_price","bid_price","bid_amount"]
[1732514717551,7.79139506,252.8,252.72,9.37409506]
[1732514718456,20.0,252.85,252.72,9.37409506]
[1732514718664,7.79139506,252.81,252.72,9.37409506]
[1732514720471,7.79139506,252.81,252.72,7.79139506]
[1732514721672,7.79139506,252.81,252.72,9.37409506]
[1732514722274,20.0,252.87,252.72,9.37409506]
[1732514722450,7.79139506,252.81,252.72,9.37409506]
[1732514723173,20.0,252.88,252.74,7.79139506]
[1732514723369,20.0,252.88,252.73,16.0517]
[1732514723370,7.79139506,252.85,252.76,9.37389506]
[1732514723561,7.79139506,252.85,252.77,6.6121]
[1732514725348,7.79139506,252.85,252.77,8.1945]
[1732514730981,20.0,252.88,252.77,8.1945]
[1732514731177,7.79139506,252.84,252.77,8.1945]
[1732514734973,7.79139506,252.84,252.77,6.6121]
[1732514741759,7.79139506,252.84,252.77,8.1945]
[1732514742283,20.0,252.81,252.77,8.1945]
[1732514742784,7.79139506,252.84,252.77,8.1945]
[1732514745175,20.0,252.93,252.77,15.98589506]
[1732514745381,7.79139506,252.86,252.77,15.98589506]
[1732514746587,20.0,252.94,252.79,7.79139506]
[1732514746763,7.79139506,252.87,252.79,7.79139506]
[1732514748477,7.79139506,252.87,252.79,9.37369506]
[1732514748990,50.28391092,252.98,252.81,7.79139506]
[1732514749285,7.79139506,252.89,252.81,7.79139506]
[1732514749978,7.79139506,252.89,252.82,15.5001]
[1732514750558,7.79139506,252.9,252.83,6.074]
[1732514751760,7.79139506,252.88,252.83,6.074]
[1732514753282,7.79139506,252.88,252.83,7.656]
[1732514754386,7.79139506,252.9,252.83,7.656]
[1732514760267,31.16558024,252.98,252.83,7.656]
[1732514760589,7.79139506,252.89,252.84,23.776884]
[1732514760774,7.79139506,252.89,252.83,7.656]
[1732514761887,7.79139506,252.87,252.83,6.074]
[1732514762082,7.79139506,252.85,252.83,6.074]
[1732514764087,7.79139506,252.85,252.83,5.0942]
[1732514766389,20.0,252.95,252.83,5.0942]
[1732514766582,7.79139506,252.87,252.83,5.0942]
[1732514768891,7.79139506,252.87,252.82,15.5001]
[1732514768892,7.79139506,252.84,252.77,1.5824]
[1732514769187,12.9253,252.94,252.76,16.6505]
[1732514769376,20.0,252.9,252.76,16.6505]
[1732514769688,7.79139506,252.85,252.76,16.6505]
[1732514770073,20.0,252.91,252.76,16.6505]
[1732514770271,20.0,252.95,252.77,7.79139506]
[1732514770686,7.79139506,252.86,252.77,7.79139506]
[1732514770866,7.79139506,252.86,252.78,23.776884]
[1732514771063,7.79139506,252.88,252.79,7.79139506]
[1732514772071,7.79139506,252.88,252.8,1.5822]
[1732514772964,7.79139506,252.86,252.8,1.5822]
[1732514774087,7.79139506,252.88,252.81,23.776884]
[1732514775480,7.79139506,252.88,252.81,25.358984]
[1732514781774,20.0,252.95,252.81,25.358984]
[1732514782090,7.79139506,252.92,252.83,31.56827906]
[1732514782394,20.0,252.97,252.83,23.776884]
[1732514782395,7.79139506,252.9,252.83,23.776884]
[1732514782975,7.79139506,252.9,252.84,1.582]
[1732514785869,6.19303068,253.0,252.83,23.776884]
[1732514785870,7.79139506,252.94,252.87,23.776884]
[1732514787003,7.79139506,252.94,252.88,1.5817]
[1732514794801,7.79139506,252.95,252.88,1.5817]
[1732514796096,7.79139506,252.94,252.88,1.5817]
[1732514799411,7.79139506,252.96,252.9,1.5816]
[1732514799897,7.79139506,252.95,252.9,1.5816]
[1732514800910,20.0,253.04,252.9,7.79139506]
[1732514801082,7.79139506,252.96,252.89,7.79139506]
[1732514801483,7.79139506,252.95,252.89,23.776884]
[1732514802003,7.79139506,252.95,252.89,25.358484]
[1732514802707,7.79139506,252.96,252.89,33.14987906]
[1732514804689,20.0,253.04,252.89,33.14987906]
[1732514804690,7.79139506,252.95,252.89,25.358484]
[1732514806308,20.0,253.05,252.89,25.358484]
[1732514806506,7.79139506,252.96,252.89,25.358484]
[1732514806884,7.79139506,252.95,252.89,25.358484]
[1732514809116,7.79139506,252.94,252.89,25.358484]
[1732514809308,7.79139506,252.95,252.89,25.358484]
[1732514810403,7.79139506,252.94,252.89,25.358484]
[1732514827407,20.0,253.05,252.89,25.358484]
[1732514827722,7.79139506,252.95,252.89,25.358484]
[1732514832520,20.0,253.03,252.89,25.358484]
[1732514832828,7.79139506,252.96,252.89,25.358484]
[1732514835322,20.0,253.04,252.9,22.6974]
[1732514835610,7.79139506,252.97,252.91,23.776884]
[1732514836422,7.79139506,252.97,252.91,25.358384]
[1732514836606,7.79139506,252.96,252.91,25.358384]
[1732514838210,20.0,253.05,252.91,25.358384]
[1732514838409,7.79139506,253.0,252.93,23.776884]
[1732514838607,7.79139506,252.98,252.93,23.776884]
[1732514838917,7.79139506,252.96,252.9,24.279]
[1732514839123,7.79139506,252.96,252.91,23.776884]
[1732514842638,20.0,253.03,252.95,23.776884]
[1732514842822,20.0,253.03,252.98,24.39649506]
[1732514843135,20.0,253.03,252.98,16.6051]
[1732514843341,20.0,253.01,252.98,16.6051]
[1732514844636,20.0,253.08,252.98,16.6051]
[1732514844826,20.0,253.01,252.98,16.6051]
[1732514848248,20.0,253.09,252.98,16.6051]
[1732514848451,20.0,253.01,252.98,16.6051]
[1732514852449,7.79139506,253.0,252.98,16.6051]
[1732514853222,7.79139506,253.0,252.91,16.6277]
[1732514853426,7.79139506,252.96,252.91,16.6277]
[1732514853751,20.0,253.07,252.91,16.6277]
[1732514853752,7.79139506,252.92,252.91,16.6277]
[1732514855025,31.16558024,252.98,252.91,16.6277]
[1732514855230,7.79139506,252.92,252.91,16.6277]
[1732514855433,7.39009506,252.92,252.91,16.6277]
[1732514855642,7.79139506,252.93,252.91,16.6277]
[1732514855832,20.0,253.03,252.91,16.6277]
[1732514856038,7.79139506,253.0,252.92,31.56827906]
[1732514856435,7.79139506,252.99,252.92,23.776884]
[1732514856655,7.79139506,252.98,252.92,23.776884]
[1732514857544,20.0,253.06,252.92,23.776884]
[1732514857747,7.79139506,252.98,252.92,23.776884]
[1732514860039,20.0,253.06,252.94,23.776884]
[1732514860241,7.79139506,253.03,252.96,7.79139506]
[1732514861034,7.79139506,253.03,252.94,38.05637906]
[1732514861234,7.79139506,252.99,252.94,30.264984]
[1732514862953,20.0,253.07,252.95,7.79139506]
[1732514863275,7.79139506,253.02,252.94,30.264984]
[1732514864862,7.79139506,253.02,252.95,7.79139506]
[1732514867562,7.79139506,253.02,252.94,30.264984]
[1732514869653,7.79139506,253.0,252.94,30.264984]
[1732514870343,20.0,253.08,252.94,30.264984]
[1732514870662,7.79139506,253.01,252.94,30.264984]
[1732514872448,20.0,253.08,252.94,30.264984]
[1732514872657,7.79139506,253.03,252.94,30.264984]
[1732514873174,7.79139506,253.03,252.96,23.776884]
[1732514876275,7.79139506,253.03,252.95,23.776884]
[1732514879957,7.79139506,253.03,252.95,31.56827906]
[1732514881564,7.79139506,253.05,252.95,31.56827906]
[1732514881780,20.0,253.02,252.95,31.56827906]
[1732514882457,16.19303068,253.12,253.01,7.79139506]
[1732514882458,6.19303068,253.12,253.01,7.79139506]
[1732514882651,7.79139506,253.1,253.01,7.79139506]
[1732514883264,6.19303068,253.15,253.03,7.79139506]
[1732514883473,7.79139506,253.14,253.05,7.79139506]
[1732514883670,6.19303068,253.17,253.08,15.7819]
[1732514883847,13.98442574,253.19,253.11,7.79139506]
[1732514884055,7.79139506,253.2,253.11,7.79139506]
[1732514885974,7.79139506,253.18,253.11,7.79139506]
[1732514886485,7.79139506,253.2,253.11,7.79139506]
[1732514887167,7.79139506,253.22,253.13,7.79139506]
[1732514887874,7.79139506,253.22,253.15,7.79139506]
[1732514888254,7.79139506,253.22,253.12,6.2762]
[1732514888255,6.19303068,253.31,253.18,16.5926]
[1732514888460,7.79139506,253.25,253.18,16.5926]
[1732514889258,7.79139506,253.27,253.19,7.79139506]
[1732514889463,7.79139506,253.25,253.18,16.5926]
[1732514894663,7.79139506,253.27,253.19,7.79139506]
[1732514898792,7.79139506,253.27,253.21,7.79139506]
[1732514899174,7.79139506,253.29,253.21,7.79139506]
[1732514899484,20.0,253.26,253.21,7.79139506]
[1732514900370,20.0,253.26,253.19,7.79139506]
[1732514903094,20.0,253.26,253.21,7.79139506]
[1732514903590,7.79139506,253.29,253.23,7.79139506]
[1732514903786,20.0,253.26,253.23,7.79139506]
[1732514904191,20.0,253.28,253.22,7.79139506]
[1732514904377,20.0,253.27,253.22,7.79139506]
[1732514904579,27.79139506,253.27,253.18,16.5926]
[1732514904776,20.0,253.27,253.21,7.79139506]
[1732514904995,20.0,253.27,253.22,7.79139506]
[1732514905380,20.0,253.26,253.2,7.79139506]
[1732514905688,20.0,253.26,253.21,7.79139506]
[1732514906493,20.0,253.28,253.23,7.79139506]
[1732514906806,20.0,253.27,253.18,16.5926]
[1732514907091,20.0,253.27,253.23,7.79139506]
[1732514908200,20.0,253.27,253.18,18.1724]
[1732514908201,20.0,253.29,253.24,7.79139506]
[1732514908894,7.79139506,253.32,253.24,7.79139506]
[1732514909192,19.2106,253.39,253.28,7.79139506]
[1732514909398,29.203,253.46,253.3,7.79139506]
[1732514909596,7.79139506,253.37,253.3,7.79139506]
[1732514909893,29.203,253.46,253.3,7.79139506]
[1732514910080,7.79139506,253.39,253.3,7.79139506]
[1732514910683,29.203,253.46,253.26,16.4998]
[1732514910684,7.79139506,253.42,253.34,7.79139506]
[1732514912499,20.0,253.43,253.36,7.79139506]
[1732514912689,31.16558024,253.5,253.36,7.79139506]
[1732514912899,7.79139506,253.44,253.36,7.79139506]
[1732514913584,19.0363,253.52,253.38,7.79139506]
[1732514913786,7.79139506,253.46,253.38,7.79139506]
[1732514914899,20.0,253.43,253.36,22.79319506]
[1732514915889,7.79139506,253.4,253.36,15.0018]
[1732514916084,7.79139506,253.38,253.36,15.0018]
[1732514917103,20.0,253.47,253.36,15.0018]
[1732514917292,7.79139506,253.4,253.36,15.0018]
[1732514917993,20.0,253.37,253.36,15.0018]
[1732514918310,7.79139506,253.4,253.36,15.0018]
[1732514919787,20.0,253.4,253.36,15.0018]
[1732514919983,20.0,253.49,253.36,15.0018]
[1732514920287,7.79139506,253.44,253.36,15.0018]
[1732514922183,7.79139506,253.44,253.37,7.79139506]
[1732514923992,7.79139506,253.44,253.36,16.1858]
[1732514924608,7.79139506,253.4,253.36,15.0018]
[1732514925104,20.0,253.47,253.36,15.0018]
[1732514925309,7.79139506,253.42,253.36,15.0018]
[1732514925487,20.0,253.45,253.36,15.0018]
[1732514925691,7.79139506,253.42,253.36,15.0018]
[1732514927419,7.79139506,253.42,253.36,16.1858]
[1732514928307,7.79139506,253.42,253.36,15.0018]
[1732514932399,7.79139506,253.4,253.36,15.0018]
[1732514932594,7.79139506,253.43,253.36,23.97719506]
[1732514933915,20.0,253.49,253.36,23.97719506]
[1732514934108,25.0018,253.59,253.45,7.79139506]
[1732514934109,15.0018,253.59,253.45,7.79139506]
[1732514934310,7.79139506,253.55,253.47,7.79139506]
[1732514936305,7.79139506,253.56,253.48,16.0923]
[1732514937324,7.79139506,253.56,253.49,7.79139506]
[1732514938627,7.79139506,253.56,253.48,16.0923]
[1732514940736,7.79139506,253.54,253.48,16.0923]
[1732514941629,7.79139506,253.5,253.48,16.0923]
[1732514941827,7.79139506,253.53,253.48,16.0923]
[1732514942125,7.79139506,253.51,253.48,16.0923]
[1732514943734,20.0,253.62,253.48,16.0923]
[1732514943936,7.79139506,253.49,253.39,21.5643]
[1732514944223,7.79139506,253.47,253.39,21.5643]
[1732514944415,7.79139506,253.47,253.39,29.35569506]
[1732514944614,7.79139506,253.49,253.39,29.35569506]
[1732514944816,7.79139506,253.49,253.41,7.79139506]
[1732514945217,7.79139506,253.51,253.43,7.79139506]
[1732514945521,7.79139506,253.53,253.45,7.79139506]
[1732514946933,7.79139506,253.54,253.46,15.783]
[1732514947617,20.0,253.6,253.46,15.783]
[1732514947822,7.79139506,253.54,253.46,15.783]
[1732514948032,20.0,253.6,253.46,15.783]
[1732514948033,20.0,253.6,253.49,7.79139506]
[1732514948333,7.79139506,253.58,253.49,7.79139506]
[1732514949408,7.79139506,253.56,253.49,7.79139506]
[1732514949827,7.79139506,253.56,253.48,6.1073]
[1732514951633,7.79139506,253.54,253.48,6.1073]
[1732514954018,7.79139506,253.56,253.48,6.1073]
[1732514954220,7.79139506,253.56,253.49,7.79139506]
[1732514954439,7.79139506,253.58,253.49,7.79139506]
[1732514954651,7.79139506,253.56,253.49,7.79139506]
[1732514954824,7.79139506,253.56,253.48,6.1073]
[1732514958443,7.79139506,253.56,253.48,7.2907]
[1732514958837,7.79139506,253.58,253.49,7.79139506]
[1732514959627,7.79139506,253.58,253.51,7.79139506]
[1732514959931,7.79139506,253.58,253.49,8.97479506]
[1732514961145,7.79139506,253.58,253.49,7.79139506]
[1732514961451,7.79139506,253.56,253.48,6.1073]
[1732514961751,1.16,253.65,253.49,15.0042]
[1732514962050,7.79139506,253.56,253.49,15.0042]
[1732514962235,23.776884,253.64,253.49,22.79559506]
[1732514962419,7.79139506,253.58,253.49,22.79559506]
[1732514963936,23.776884,253.64,253.49,22.79559506]
[1732514964228,7.79139506,253.57,253.49,22.79559506]
[1732514964749,7.79139506,253.57,253.49,15.0042]
[1732514965451,7.79139506,253.57,253.5,7.79139506]
[1732514965749,7.79139506,253.57,253.49,15.0042]
[1732514971333,7.79139506,253.57,253.5,7.79139506]
[1732514972355,7.79139506,253.57,253.5,8.97479506]
[1732514972856,1.16,253.65,253.5,8.97479506]
[1732514973064,7.79139506,253.58,253.5,8.97479506]
[1732514976832,7.79139506,253.58,253.52,7.79139506]
[1732514977039,1.16,253.65,253.52,7.79139506]
[1732514977345,7.79139506,253.59,253.52,7.79139506]
[1732514978597,7.79139506,253.59,253.49,15.0042]
[1732514978598,1.16,253.65,253.54,7.79139506]
[1732514978741,7.79139506,253.63,253.54,7.79139506]
[1732514979271,7.79139506,253.6,253.53,15.6302]
[1732514982766,7.79139506,253.6,253.53,23.42159506]
[1732514985772,1.16,253.65,253.53,23.42159506]
[1732514985773,1.16,253.65,253.54,1.1832]
[1732514985983,7.79139506,253.62,253.54,1.1832]
[1732514986178,1.16,253.65,253.54,1.1832]
[1732514986377,7.79139506,253.62,253.54,1.1832]
[1732514988167,1.16,253.65,253.59,7.79139506]
[1732514988483,1.16,253.65,253.57,14.02409506]
[1732514988781,8.95139506,253.65,253.57,14.02409506]
[1732514989181,1.16,253.65,253.59,7.79139506]
[1732514990087,1.16,253.65,253.6,1.1829]
[1732514990576,1.16,253.65,253.6,8.97429506]
[1732514990954,1.16,253.65,253.6,1.1829]
[1732514991159,7.79139506,253.66,253.6,1.1829]
[1732514992479,7.79139506,253.69,253.62,1.1828]
[1732514994578,7.79139506,253.69,253.59,23.776884]
[1732514994786,7.79139506,253.67,253.6,1.1829]
[1732514994972,7.79139506,253.65,253.58,15.9253]
[1732514995173,7.79139506,253.65,253.58,17.1083]
[1732514996265,7.79139506,253.63,253.58,15.9253]
[1732514997173,6.19303068,253.72,253.58,15.9253]
[1732514997374,23.776884,253.71,253.58,15.9253]
[1732514997693,7.79139506,253.62,253.58,15.9253]
[1732515003177,7.79139506,253.6,253.51,16.4897]
[1732515003483,7.79139506,253.58,253.51,16.4897]
[1732515003680,7.79139506,253.56,253.51,16.4897]
[1732515009381,7.79139506,253.58,253.51,16.4897]
[1732515009905,7.79139506,253.6,253.52,7.79139506]
[1732515011287,6.1726722,253.67,253.52,7.79139506]
[1732515011288,7.79139506,253.63,253.54,7.79139506]
[1732515011489,7.79139506,253.63,253.56,7.79139506]
[1732515012095,7.79139506,253.65,253.56,7.79139506]
[1732515012997,7.79139506,253.65,253.56,8.97449506]
[1732515013301,6.1726722,253.7,253.58,14.02589506]
[1732515013487,24.69068882,253.74,253.6,7.79139506]
[1732515013488,7.79139506,253.69,253.6,7.79139506]
[1732515013895,6.1726722,253.73,253.6,7.79139506]
[1732515014096,7.79139506,253.69,253.6,7.79139506]
[1732515015304,7.79139506,253.7,253.6,4.82224834]
[1732515015986,7.79139506,253.68,253.6,4.82224834]
[1732515019404,7.79139506,253.68,253.6,3.63934834]
[1732515019607,6.1726722,253.74,253.58,7.4175]
[1732515019608,7.79139506,253.66,253.58,7.4175]
[1732515020098,7.79139506,253.6,253.57,15.8505]
[1732515021091,7.79139506,253.62,253.57,15.8505]
[1732515022185,6.1726722,253.71,253.59,7.79139506]
[1732515022386,24.69068882,253.75,253.61,7.79139506]
[1732515022387,7.79139506,253.69,253.61,7.79139506]
[1732515022813,7.79139506,253.69,253.59,7.79139506]
[1732515023509,7.79139506,253.69,253.59,8.97429506]
[1732515025617,7.79139506,253.67,253.59,8.97429506]
[1732515025793,7.79139506,253.65,253.57,17.0335]
[1732515025989,7.79139506,253.63,253.57,15.8505]
[1732515028318,7.79139506,253.65,253.57,15.8505]
[1732515028621,6.1726722,253.73,253.63,7.79139506]
[1732515028812,7.79139506,253.72,253.6,6.5497]
[1732515029117,7.79139506,253.72,253.63,7.79139506]
[1732515029907,7.79139506,253.72,253.63,8.97419506]
[1732515030204,7.79139506,253.71,253.63,8.97419506]
[1732515030890,7.79139506,253.67,253.57,5.13549813]
[1732515031091,7.79139506,253.67,253.53,17.2025]
[1732515031092,7.79139506,253.59,253.53,16.0193]
[1732515032207,20.0,253.65,253.54,7.79139506]
[1732515032518,7.79139506,253.62,253.53,16.0193]
[1732515032898,5.29139506,253.6,253.53,16.0193]
[1732515038499,7.79139506,253.58,253.53,16.0193]
[1732515052253,7.79139506,253.56,253.53,16.0193]
[1732515053251,7.79139506,253.58,253.53,16.0193]
[1732515054244,7.79139506,253.59,253.53,16.0193]
[1732515056847,20.0,253.67,253.53,16.0193]
[1732515057058,7.79139506,253.59,253.53,16.0193]
[1732515058365,7.79139506,253.57,253.53,16.0193]
[1732515063566,20.0,253.65,253.53,16.0193]
[1732515063876,7.79139506,253.61,253.53,16.0193]
[1732515064057,7.79139506,253.59,253.53,16.0193]
[1732515065077,7.79139506,253.57,253.53,16.0193]
[1732515072277,7.79139506,253.55,253.53,16.0193]
[1732515072570,20.0,253.6,253.53,16.0193]
[1732515072758,7.79139506,253.56,253.53,16.0193]
[1732515073176,20.0,253.6,253.5,6.4498]
[1732515073177,7.79139506,253.54,253.5,6.4498]
[1732515073369,7.79139506,253.54,253.47,15.5799]
[1732515073681,7.79139506,253.54,253.47,16.7634]
[1732515074181,7.79139506,253.52,253.47,15.5799]
[1732515075562,20.0,253.6,253.47,15.5799]
[1732515075887,7.79139506,253.52,253.47,15.5799]
[1732515076573,7.79139506,253.54,253.47,16.7634]
[1732515076776,7.79139506,253.55,253.47,16.7634]
[1732515077884,7.79139506,253.55,253.48,7.79139506]
[1732515078471,20.0,253.6,253.48,7.79139506]
[1732515078682,7.79139506,253.57,253.48,7.79139506]
[1732515078860,7.79139506,253.59,253.5,7.79139506]
[1732515079071,7.79139506,253.59,253.5,8.97469506]
[1732515080484,7.79139506,253.57,253.48,7.79139506]
[1732515080672,7.79139506,253.57,253.48,8.97489506]
[1732515083382,7.79139506,253.53,253.47,15.5799]
[1732515084092,7.79139506,253.51,253.47,15.5799]
[1732515089789,7.79139506,253.49,253.41,16.4448]
[1732515089983,7.79139506,253.47,253.41,16.4448]
[1732515091887,7.79139506,253.49,253.41,24.23619506]
[1732515093272,7.79139506,253.47,253.41,16.4448]
[1732515093789,7.79139506,253.43,253.28,15.3856]
[1732515093980,7.79139506,253.38,253.29,7.79139506]
[1732515094173,23.776884,253.54,253.36,7.79139506]
[1732515094376,7.79139506,253.46,253.37,15.3856]
[1732515096909,7.79139506,253.46,253.37,16.5696]
[1732515099099,20.0,253.51,253.38,7.79139506]
[1732515099406,7.79139506,253.47,253.38,7.79139506]
[1732515100103,7.79139506,253.42,253.33,7.79139506]
[1732515100325,7.79139506,253.44,253.35,7.79139506]
[1732515101384,7.79139506,253.44,253.35,8.97549506]
[1732515101590,7.79139506,253.42,253.29,26.737784]
[1732515101901,7.79139506,253.4,253.32,7.79139506]
[1732515102280,23.776884,253.54,253.36,7.79139506]
[1732515102480,7.79139506,253.44,253.36,7.79139506]
[1732515103907,23.776884,253.54,253.38,7.79139506]
[1732515104083,7.79139506,253.46,253.38,7.79139506]
[1732515108089,7.79139506,253.46,253.38,8.97529506]
[1732515109212,20.0,253.52,253.4,7.79139506]
[1732515109419,7.79139506,253.49,253.4,7.79139506]
[1732515110113,7.79139506,253.45,253.38,24.78399506]
[1732515111709,7.79139506,253.48,253.4,7.79139506]
[1732515112715,7.79139506,253.48,253.4,8.97519506]
[1732515119025,19.1116,253.61,253.44,7.79139506]
[1732515119325,7.79139506,253.53,253.44,7.79139506]
[1732515119510,7.79139506,253.53,253.46,7.79139506]
[1732515120425,7.79139506,253.53,253.44,8.97499506]
[1732515124217,7.79139506,253.53,253.44,7.79139506]
[1732515125634,7.79139506,253.53,253.45,1.1836]
[1732515126413,7.79139506,253.55,253.47,7.79139506]
[1732515127211,7.79139506,253.55,253.47,8.97489506]
[1732515128764,23.776884,253.65,253.51,7.79139506]
[1732515128920,7.79139506,253.6,253.51,7.79139506]
[1732515129321,41.42094441,253.69,253.51,7.79139506]
[1732515129635,7.79139506,253.6,253.51,7.79139506]
[1732515130136,7.79139506,253.6,253.51,8.97469506]
[1732515131135,20.0,253.66,253.53,7.79139506]
[1732515131437,7.79139506,253.61,253.53,7.79139506]
[1732515132034,7.79139506,253.61,253.53,8.97459506]
[1732515133928,7.79139506,253.61,253.51,7.79139506]
[1732515135415,7.79139506,253.61,253.52,1.1833]
[1732515139956,7.79139506,253.61,253.48,22.5346]
[1732515140134,7.79139506,253.61,253.51,7.79139506]
[1732515141839,7.79139506,253.61,253.52,1.1833]
[1732515142718,7.79139506,253.59,253.52,1.1833]
[1732515143948,20.0,253.66,253.52,1.1833]
[1732515143949,7.79139506,253.6,253.52,1.1833]
[1732515145546,20.0,253.66,253.52,1.1833]
[1732515145751,7.79139506,253.61,253.53,7.79139506]
[1732515146818,7.79139506,253.61,253.51,7.79139506]
[1732515148037,7.79139506,253.61,253.51,8.97469506]
[1732515150026,20.0,253.66,253.53,7.79139506]
[1732515150229,7.79139506,253.63,253.53,7.79139506]
[1732515151290,7.79139506,253.63,253.55,7.79139506]
[1732515151435,20.0,253.62,253.55,7.79139506]
[1732515152134,20.0,253.7,253.57,7.79139506]
[1732515152334,20.0,253.62,253.57,7.79139506]
[1732515154554,20.0,253.7,253.57,7.79139506]
[1732515154728,20.0,253.62,253.57,7.79139506]
[1732515155135,20.0,253.62,253.55,7.79139506]
[1732515155364,20.0,253.62,253.55,8.97449506]
[1732515156240,20.0,253.62,253.55,7.79139506]
[1732515156646,20.0,253.62,253.55,8.97449506]
[1732515157236,7.79139506,253.63,253.54,16.4717]
[1732515157464,7.79139506,253.63,253.55,7.79139506]
[1732515161563,7.79139506,253.63,253.55,8.97449506]
[1732515164441,7.79139506,253.63,253.55,7.79139506]
[1732515165563,20.0,253.62,253.55,7.79139506]
[1732515166743,20.0,253.62,253.54,17.6549]
[1732515167264,20.0,253.62,253.55,8.97449506]
[1732515167845,20.0,253.62,253.56,6.48]
[1732515168165,25.5256722,253.81,253.61,15.0261]
[1732515168343,7.79139506,253.74,253.65,7.79139506]
[1732515168960,29.353,253.81,253.65,7.79139506]
[1732515169163,7.79139506,253.74,253.65,7.79139506]
[1732515169873,20.0,253.71,253.65,7.79139506]
[1732515171068,20.0,253.71,253.61,15.0261]
[1732515171268,20.0,253.71,253.63,7.79139506]
[1732515172263,20.0,253.71,253.65,7.79139506]
[1732515172474,20.0,253.78,253.65,7.79139506]
[1732515172771,20.0,253.71,253.65,7.79139506]
[1732515174173,20.0,253.78,253.65,7.79139506]
[1732515174354,20.0,253.72,253.65,7.79139506]
[1732515174764,20.0,253.78,253.67,16.1115]
[1732515174950,20.0,253.72,253.67,16.1115]
[1732515179861,20.0,253.68,253.67,16.1115]
[1732515181065,7.79139506,253.7,253.67,16.1115]
[1732515182777,20.0,253.68,253.67,16.1115]
[1732515185385,20.0,253.69,253.61,15.0207]
[1732515185588,20.0,253.69,253.61,23.99499506]
[1732515186594,20.0,253.77,253.61,23.99499506]
[1732515186879,20.0,253.69,253.61,23.99499506]
[1732515187474,20.0,253.69,253.63,7.79139506]
[1732515187673,20.0,253.77,253.63,7.79139506]
[1732515187880,20.0,253.72,253.63,7.79139506]
[1732515188385,20.0,253.7,253.63,7.79139506]
[1732515188683,20.0,253.7,253.63,8.97419506]
[1732515188870,20.0,253.71,253.63,8.97419506]
[1732515189383,20.0,253.71,253.65,7.79139506]
[1732515190969,20.0,253.71,253.63,7.79139506]
[1732515193692,20.0,253.71,253.63,8.97419506]
[1732515194070,20.0,253.8,253.63,8.97419506]
[1732515194285,20.0,253.74,253.67,7.79139506]
[1732515196791,20.0,253.74,253.62,1.1828]
[1732515196965,20.0,253.78,253.71,7.79139506]
[1732515197175,20.0,253.74,253.62,1.1828]
[1732515197392,20.0,253.74,253.67,7.79139506]
[1732515197687,20.0,253.73,253.67,7.79139506]
[1732515198377,7.79139506,253.74,253.67,7.79139506]
[1732515201793,7.79139506,253.74,253.65,7.79139506]
[1732515202995,7.79139506,253.74,253.61,16.2035]
[1732515203184,7.79139506,253.72,253.64,7.79139506]
[1732515203576,7.79139506,253.72,253.61,16.2035]
[1732515203772,7.79139506,253.72,253.65,7.79139506]
[1732515206371,7.79139506,253.72,253.63,7.79139506]
[1732515206575,7.79139506,253.7,253.62,7.79139506]
[1732515207987,7.79139506,253.7,253.61,15.0207]
[1732515208586,7.79139506,253.68,253.61,15.0207]
[1732515211486,7.79139506,253.68,253.61,22.81209506]
[1732515212790,20.0,253.74,253.61,22.81209506]
[1732515212982,7.79139506,253.69,253.61,22.81209506]
[1732515213911,7.79139506,253.69,253.61,15.0207]
[1732515216892,31.16558024,253.76,253.61,15.0207]
[1732515216893,20.0,253.66,253.61,15.0207]
[1732515217210,7.79139506,253.67,253.61,15.0207]
[1732515218089,20.0,253.6,253.53,16.1659]
[1732515218412,27.79139506,253.6,253.53,16.1659]
[1732515218594,7.79139506,253.6,253.53,16.1659]
[1732515220384,7.79139506,253.58,253.53,16.1659]
[1732515220592,7.79139506,253.56,253.53,16.1659]
[1732515220891,7.79139506,253.54,253.47,15.6792]
[1732515221402,60.67998024,253.63,253.42,22.0001]
[1732515221403,7.79139506,253.52,253.42,22.0001]
[1732515221599,7.79139506,253.52,253.43,7.79139506]
[1732515222415,7.79139506,253.52,253.42,22.0001]
[1732515222592,7.79139506,253.54,253.44,7.79139506]
[1732515222908,20.0,253.59,253.46,7.79139506]
[1732515223108,7.79139506,253.56,253.48,7.79139506]
[1732515223606,20.0,253.59,253.48,7.79139506]